fUSD/lending_fUSD_20250820
["ID","MTS","AMOUNT","RATE_DAILY","PERIOD"]
[380360904,1755704211929,-2126.31,0.0003041,120]
[380360905,1755704211979,-681.69,0.0003041,120]
[380360906,1755704212026,-509.89,0.0003041,120]
[380360907,1755704212076,-400.0,0.0003041,120]
[380360908,1755704212128,-400.0,0.0003041,120]
[380360909,1755704212179,-400.0,0.0003041,120]
[380360910,1755704212233,-904.95,0.0003041,120]
[380360911,1755704212284,-500.0,0.0003041,120]
[380360912,1755704212335,-797.56,0.0003041,120]
[380360913,1755704212385,-1316.41,0.0003041,120]
[380360914,1755704212434,-604.52,0.0003041,120]
[380360915,1755704212483,-400.0,0.0003041,120]
[380360916,1755704212534,-2249.71,0.0003041,120]
[380360917,1755704212584,-656.33,0.0003041,120]
[380360918,1755704212637,-1514.67,0.0003041,120]
[380360919,1755704212684,-683.65,0.0003041,120]
[380360920,1755704212736,-770.36,0.0003041,120]
[380360921,1755704212785,-545.94,0.0003041,120]
[380360922,1755704212840,-871.96,0.0003041,120]
[380360923,1755704212891,-400.0,0.0003041,120]
[380360924,1755704212943,-1610.85,0.0003041,120]
[380360925,1755704212993,-489.56,0.0003041,120]
[380360926,1755704213048,-400.0,0.0003041,120]
[380360927,1755704213101,-1414.93,0.0003041,120]
[380360928,1755704213154,-1192.37,0.0003041,120]
[380360929,1755704213208,-990.05,0.0003041,120]
[380360930,1755704213266,-423.13,0.0003041,120]
[380360931,1755704213321,-400.0,0.0003041,120]
[380360932,1755704213376,-400.0,0.0003041,120]
[380360933,1755704213713,-798.49,0.0003041,120]
[380360934,1755704213769,-1094.05,0.0003041,120]
[380360935,1755704213825,-400.0,0.0003041,120]
[380360936,1755704213882,-400.0,0.0003041,120]
[380360937,1755704213936,-1866.42,0.0003041,120]
[380360938,1755704213988,-669.21,0.0003041,120]
[380360939,1755704214045,-437.13,0.0003041,120]
[380360940,1755704214097,-1165.24,0.0003041,120]
[380360941,1755704214148,-400.0,0.0003041,120]
[380360942,1755704214204,-1082.74,0.0003041,120]
[380360943,1755704214258,-761.12,0.0003041,120]
[380360944,1755704214311,-1131.91,0.0003041,120]
[380360945,1755704214363,-400.0,0.0003041,120]
[380360946,1755704214416,-1025.54,0.0003041,120]
[380360947,1755704214469,-400.0,0.0003041,120]
[380360948,1755704214525,-400.0,0.0003041,120]
[380360949,1755704214577,-1107.64,0.0003041,120]
[380360950,1755704214633,-988.53,0.0003041,120]
[380360951,1755704214684,-783.62,0.0003041,120]
[380360952,1755704214738,-1566.11,0.0003041,120]
[380360953,1755704214790,-973.51,0.0003041,120]
[380360954,1755704214847,-400.0,0.0003041,120]
[380360955,1755704214902,-400.0,0.0003041,120]
[380360956,1755704214958,-1437.7,0.0003041,120]
[380360957,1755704215011,-410.01,0.0003041,120]
[380360958,1755704215068,-2106.18,0.0003041,120]
[380360959,1755704215124,-1334.88,0.0003041,120]
[380360960,1755704215179,-1068.77,0.0003041,120]
[380360961,1755704215244,-400.0,0.0003041,120]
[380360962,1755704215312,-1044.09,0.0003041,120]
[380360963,1755704215377,-517.33,0.0003041,120]
[380360964,1755704215438,-1847.89,0.0003041,120]
[380360965,1755704215495,-1164.31,0.0003041,120]
[380360966,1755704215553,-1081.05,0.0003041,120]
[380360967,1755704215610,-1429.52,0.0003041,120]
[380360968,1755704215668,-935.17,0.0003041,120]
[380360969,1755704215724,-400.0,0.0003041,120]
[380360970,1755704215784,-1032.41,0.0003041,120]
[380360971,1755704215839,-1075.23,0.0003041,120]
[380360972,1755704215893,-377.3821413,0.0003041,120]
[380360973,1755704215947,-400.0,0.0003041,120]
[380360974,1755704216007,-812.94,0.0003041,120]
[380360975,1755704216065,-1344.41,0.0003041,120]
[380360976,1755704216127,-400.0,0.0003041,120]
[380360977,1755704216188,-1754.93,0.0003041,120]
[380360978,1755704216250,-606.67,0.0003041,120]
[380360979,1755704216306,-2032.33,0.0003041,120]
[380360980,1755704216362,-400.0,0.0003041,120]
[380360981,1755704216416,-400.0,0.0003041,120]
[380360982,1755704216479,-400.0,0.0003041,120]
[380360983,1755704216538,-400.0,0.0003041,120]
[380360984,1755704216596,-639.29,0.0003041,120]
[380360985,1755704216650,-2642.61,0.0003041,120]
[380360986,1755704216709,-500.17,0.0003041,120]
[380360987,1755704216768,-1094.83,0.0003041,120]
[380360988,1755704216829,-669.26,0.0003041,120]
[380360989,1755704216886,-732.92,0.0003041,120]
[380360990,1755704216938,-1881.83,0.0003041,120]
[380360991,1755704216993,-400.0,0.0003041,120]
[380360992,1755704217049,-1508.63,0.0003041,120]
[380360993,1755704217103,-761.4,0.0003041,120]
[380360994,1755704217159,-1828.49,0.0003041,120]
[380360995,1755704217213,-1336.85,0.0003041,120]
[380360996,1755704217267,-400.0,0.0003041,120]
[380360997,1755704217319,-400.0,0.0003041,120]
[380360998,1755704217373,-400.0,0.0003041,120]
[380360999,1755704217427,-440.94168499,0.0003041,120]
[380361000,1755704217481,-400.0,0.0003041,120]
[380361001,1755704217536,-400.0,0.0003041,120]
[380361002,1755704217586,-427.33,0.0003041,120]
[380361003,1755704217637,-400.0,0.0003041,120]
[380361004,1755704217685,-400.0,0.0003041,120]
[380361005,1755704217741,-1543.09,0.0003041,120]
[380361006,1755704217797,-400.8322433,0.0003041,120]
[380361007,1755704217849,-400.0,0.0003041,120]
[380361008,1755704217899,-1045.19,0.0003041,120]
[380361009,1755704217953,-400.0,0.0003041,120]
[380361010,1755704218006,-1529.96,0.0003041,120]
[380361011,1755704218058,-1579.2,0.0003041,120]
[380361012,1755704218115,-1002.76,0.0003041,120]
[380361013,1755704218172,-659.05,0.0003041,120]
[380361014,1755704218231,-413.4,0.0003041,120]
[380361015,1755704218294,-400.0,0.0003041,120]
[380361016,1755704218353,-400.0,0.0003041,120]
[380361017,1755704218411,-400.0,0.0003041,120]
[380361018,1755704218468,-886.53,0.0003041,120]
[380361019,1755704218525,-793.9,0.0003041,120]
[380361020,1755704218583,-400.0,0.0003041,120]
[380361021,1755704218639,-986.8,0.0003041,120]
[380361022,1755704218692,-400.0,0.0003041,120]
[380361023,1755704218747,-400.0,0.0003041,120]
[380361024,1755704218802,-618.11,0.0003041,120]
[380361025,1755704218859,-1594.74,0.0003041,120]
[380361026,1755704218913,-400.0,0.0003041,120]
[380361027,1755704218969,-400.0,0.0003041,120]
[380361028,1755704219020,-898.93,0.0003041,120]
[380361029,1755704219086,-1378.0,0.0003041,120]
[380361030,1755704219150,-400.0,0.0003041,120]
[380361031,1755704219208,-2178.59,0.0003041,120]
[380361032,1755704219267,-669.63,0.0003041,120]
[380361033,1755704219326,-400.0,0.0003041,120]
[380361034,1755704219388,-758.69,0.0003041,120]
[380361035,1755704219451,-400.0,0.0003041,120]
[380361036,1755704219510,-400.0,0.0003041,120]
[380361037,1755704219566,-1782.97,0.0003041,120]
[380361038,1755704219618,-873.12,0.0003041,120]
[380361039,1755704219670,-1265.56,0.0003041,120]
[380361040,1755704219728,-400.0,0.0003041,120]
[380361041,1755704219785,-400.0,0.0003041,120]
[380361042,1755704219834,-400.0,0.0003041,120]
[380361043,1755704219889,-1408.06,0.0003041,120]
[380361044,1755704219944,-400.0,0.0003041,120]
[380361045,1755704219996,-894.97,0.0003041,120]
[380361046,1755704220071,-400.0,0.0003041,120]
[380361047,1755704220141,-499.98,0.0003041,120]
[380361048,1755704220493,-568.57,0.0003041,120]
[380361049,1755704220551,-1516.1,0.0003041,120]
[380361050,1755704220610,-1076.16,0.0003041,120]
[380361051,1755704220664,-1592.07,0.0003041,90]
[380361052,1755704220727,-1251.82,0.0003041,120]
[380361053,1755704220783,-735.01,0.0003041,120]
[380361054,1755704220834,-517.32,0.0003041,120]
[380361055,1755704220892,-1621.96,0.0003041,120]
[380361056,1755704220944,-928.34,0.0003041,120]
[380361057,1755704220999,-1262.51,0.0003041,120]
[380361058,1755704221059,-1369.25,0.0003041,120]
[380361059,1755704221118,-390.50612436,0.0003041,120]
[380361060,1755704221173,-400.0,0.0003041,120]
[380361061,1755704221229,-400.0,0.0003041,120]
[380361062,1755704221282,-1324.59,0.0003041,120]
[380361063,1755704221335,-518.29,0.0003041,120]
[380361064,1755704221388,-1463.66,0.0003041,120]
[380361065,1755704221439,-405.99,0.0003041,120]
[380361066,1755704221494,-967.0,0.0003041,120]
[380361067,1755704221543,-917.08,0.0003041,120]
[380361068,1755704221594,-2119.93,0.0003041,120]
[380361069,1755704221642,-724.47,0.0003041,120]
[380361070,1755704221690,-400.0,0.0003041,120]
[380361071,1755704221741,-1445.47,0.0003041,120]
[380361072,1755704221791,-400.0,0.0003041,120]
[380361073,1755704221845,-1061.13,0.0003041,120]
[380361074,1755704221897,-1207.43,0.0003041,120]
[380361075,1755704221949,-1483.2,0.0003041,120]
[380361076,1755704222002,-400.0,0.0003041,120]
[380361077,1755704222055,-400.0,0.0003041,120]
[380361078,1755704222109,-428.84,0.0003041,120]
[380361079,1755704222161,-1210.13,0.0003041,120]
[380361080,1755704222215,-599.69,0.0003041,120]
[380361081,1755704222273,-400.0,0.0003041,120]
[380361082,1755704222332,-740.49,0.0003041,120]
[380361083,1755704222397,-1064.64,0.0003041,120]
[380361084,1755704222467,-434.08,0.0003041,120]
[380361085,1755704222522,-1525.7,0.0003041,120]
[380361086,1755704222572,-833.53,0.0003041,120]
[380361087,1755704222624,-816.7,0.0003041,120]
[380361088,1755704222672,-1407.72,0.0003041,120]
[380361089,1755704222727,-400.0,0.0003041,120]
[380361090,1755704222780,-1323.38,0.0003041,120]
[380361091,1755704222829,-400.0,0.0003041,120]
[380361092,1755704222885,-1711.86,0.0003041,120]
[380361093,1755704222935,-400.0,0.0003041,120]
[380361094,1755704222986,-1247.11,0.0003041,120]
[380361095,1755704223041,-1529.7,0.0003041,120]
[380361096,1755704223097,-1203.94,0.0003041,120]
[380361097,1755704223156,-400.0,0.0003041,120]
[380361098,1755704223216,-686.73,0.0003041,120]
[380361099,1755704223280,-1038.41,0.0003041,120]
[380361100,1755704223341,-599.44,0.0003041,120]
[380361101,1755704223404,-400.0,0.0003041,120]
[380361102,1755704223465,-594.6,0.0003041,120]
[380361103,1755704223527,-1151.24,0.0003041,120]
[380361104,1755704223589,-1524.89,0.0003041,120]
[380361105,1755704223651,-1071.06,0.0003041,120]
[380361106,1755704223714,-898.16,0.0003041,120]
[380361107,1755704223774,-1508.56,0.0003041,120]
[380361108,1755704223836,-2157.99,0.0003041,120]
[380361109,1755704223894,-400.0,0.0003041,120]
[380361110,1755704223954,-638.08,0.0003041,120]
[380361111,1755704224012,-958.36,0.0003041,120]
[380361112,1755704224072,-467.02,0.0003041,120]
[380361113,1755704224131,-400.0,0.0003041,120]
[380361114,1755704224193,-400.0,0.0003041,120]
[380361115,1755704224254,-533.16,0.0003041,120]
[380361116,1755704224318,-479.94,0.0003041,120]
[380361117,1755704224377,-400.0,0.0003041,120]
[380361118,1755704224438,-415.41,0.0003041,120]
[380361119,1755704224497,-400.0,0.0003041,120]
[380361120,1755704224558,-961.35,0.0003041,120]
[380361121,1755704224617,-1556.63,0.0003041,120]
[380361122,1755704224676,-400.0,0.0003041,120]
[380361123,1755704224734,-400.0,0.0003041,120]
[380361124,1755704224791,-400.0,0.0003041,120]
[380361125,1755704224845,-1388.72,0.0003041,120]
[380361126,1755704224899,-1000.0,0.0003041,120]
[380361127,1755704224953,-1020.24,0.0003041,120]
[380361128,1755704225006,-400.0,0.0003041,120]
[380361129,1755704225062,-1321.35,0.0003041,120]
[380361130,1755704225116,-1119.32,0.0003041,120]
[380361131,1755704225175,-756.19,0.0003041,120]
[380361132,1755704225233,-1212.88,0.0003041,120]
[380361133,1755704225290,-1378.26,0.0003041,120]
[380361134,1755704225346,-2593.96,0.0003041,120]
[380361135,1755704225401,-400.0,0.0003041,120]
[380361136,1755704225456,-411.19,0.0003041,120]
[380361137,1755704225512,-1400.33,0.0003041,120]
[380361138,1755704225565,-860.25,0.0003041,120]
[380361139,1755704225621,-400.0,0.0003041,120]
[380361140,1755704225676,-1247.29,0.0003041,120]
[380361141,1755704225735,-856.88,0.0003041,120]
[380361142,1755704225791,-400.0,0.0003041,120]
[380361143,1755704225844,-621.24,0.0003041,120]
[380361144,1755704225900,-1086.36,0.0003041,120]
[380361145,1755704225955,-400.0,0.0003041,120]
[380361146,1755704226011,-954.58,0.0003041,120]
[380361147,1755704226070,-1122.13,0.0003041,120]
[380361148,1755704226135,-400.0,0.0003041,120]
[380361149,1755704226204,-400.0,0.0003041,120]
[380361150,1755704226276,-467.99,0.0003041,120]
[380361151,1755704226340,-400.0,0.0003041,120]
[380361152,1755704226402,-776.74,0.0003041,120]
[380361153,1755704226459,-745.56,0.0003041,120]
[380361154,1755704226519,-400.72,0.0003041,120]
[380361155,1755704226573,-400.0,0.0003041,120]
[380361156,1755704226643,-400.0,0.0003041,120]
[380361157,1755704226700,-668.78,0.0003041,120]
[380361158,1755704226761,-1890.76,0.0003041,120]
[380361159,1755704226822,-808.26,0.0003041,120]
[380361160,1755704226877,-1437.42,0.0003041,120]
[380361161,1755704226939,-400.0,0.0003041,120]
[380361162,1755704227002,-400.0,0.0003041,120]
[380361163,1755704227351,-408.52,0.0003041,120]
[380361164,1755704227411,-400.0,0.0003041,120]
[380361165,1755704227473,-995.33,0.0003041,120]
[380361166,1755704227534,-400.0,0.0003041,120]
[380361167,1755704227588,-607.8,0.0003041,120]
[380361168,1755704227645,-400.0,0.0003041,120]
[380361169,1755704227697,-550.3,0.0003041,120]
[380361170,1755704227757,-1879.06,0.0003041,120]
[380361171,1755704227814,-584.92,0.0003041,120]
[380361172,1755704227868,-1095.24,0.0003041,120]
[380361173,1755704227919,-1130.3,0.0003041,120]
[380361174,1755704227974,-400.0,0.0003041,120]
[380361175,1755704228024,-400.0,0.0003041,120]
[380361176,1755704228079,-1105.71,0.0003041,120]
[380361177,1755704228134,-400.0,0.0003041,120]
[380361178,1755704228197,-558.7,0.0003041,120]
[380361179,1755704228252,-2576.43,0.0003041,120]
[380361180,1755704228310,-400.0,0.0003041,120]
[380361181,1755704228366,-1221.29,0.0003041,120]
[380361182,1755704228422,-400.0,0.0003041,120]
[380361183,1755704228478,-413.55388196,0.0003041,120]
[380361184,1755704228535,-400.0,0.0003041,120]
[380361185,1755704228587,-1290.49,0.0003041,120]
[380361186,1755704228641,-1328.46,0.0003041,120]
[380361187,1755704228692,-400.0,0.0003041,120]
[380361188,1755704228740,-400.0,0.0003041,120]
[380361189,1755704228791,-655.49,0.0003041,120]
[380361190,1755704228843,-547.67,0.0003041,120]
[380361191,1755704228897,-747.95,0.0003041,120]
[380361192,1755704228944,-400.0,0.0003041,120]
[380361193,1755704228996,-614.58,0.0003041,120]
[380361194,1755704229048,-1919.54,0.0003041,120]
[380361195,1755704229100,-1467.27,0.0003041,120]
[380361196,1755704229151,-1102.57,0.0003041,120]
[380361197,1755704229206,-1484.05,0.0003041,120]
[380361198,1755704229260,-821.76,0.0003041,120]
[380361199,1755704229314,-1261.65,0.0003041,120]
[380361200,1755704229369,-400.0,0.0003041,120]
[380361201,1755704229424,-407.83,0.0003041,120]
[380361202,1755704229482,-836.61,0.0003041,120]
[380361203,1755704229537,-1466.82,0.0003041,120]
[380361204,1755704229592,-400.0,0.0003041,120]
[380361205,1755704229646,-1136.83,0.0003041,120]
[380361206,1755704229699,-1677.64,0.0003041,120]
[380361207,1755704229751,-410.2,0.0003041,120]
[380361208,1755704229804,-1316.67,0.0003041,120]
[380361209,1755704229854,-400.0,0.0003041,120]
[380361210,1755704229910,-716.18,0.0003041,120]
[380361211,1755704229965,-1051.67,0.0003041,120]
[380361212,1755704230021,-400.0,0.0003041,120]
[380361213,1755704230075,-1081.7,0.0003041,120]
[380361214,1755704230132,-816.21,0.0003041,120]
[380361215,1755704230187,-1388.81,0.0003041,120]
[380361216,1755704230242,-400.0,0.0003041,120]
[380361217,1755704230292,-562.4,0.0003041,120]
[380361218,1755704230348,-1723.19,0.0003041,120]
[380361219,1755704230414,-422.9,0.0003041,120]
[380361220,1755704230474,-744.58,0.0003041,120]
[380361221,1755704230529,-1178.3,0.0003041,120]
[380361222,1755704230580,-400.0,0.0003041,120]
[380361223,1755704230636,-400.0,0.0003041,120]
[380361224,1755704230691,-400.0,0.0003041,120]
[380361225,1755704230746,-400.0,0.0003041,120]
[380361226,1755704230803,-1662.53,0.0003041,120]
[380361227,1755704230857,-400.0,0.0003041,120]
[380361228,1755704230913,-1096.26,0.0003041,120]
[380361229,1755704230966,-400.0,0.0003041,120]
[380361230,1755704231023,-1171.09,0.0003041,120]
[380361231,1755704231081,-400.0,0.0003041,120]
[380361232,1755704231137,-400.0,0.0003041,120]
[380361233,1755704231196,-452.21211685,0.0003041,120]
[380361234,1755704231264,-471.29,0.0003041,120]
[380361235,1755704231333,-400.0,0.0003041,120]
[380361236,1755704231394,-400.0,0.0003041,120]
[380361237,1755704231454,-2219.35,0.0003041,120]
[380361238,1755704231512,-400.0,0.0003041,120]
[380361239,1755704231567,-1833.57,0.0003041,120]
[380361240,1755704231621,-2231.4,0.0003041,120]
[380361241,1755704231674,-664.55,0.0003041,120]
[380361242,1755704231727,-1315.5,0.0003041,120]
[380361243,1755704231780,-400.0,0.0003041,120]
[380361244,1755704231831,-400.0,0.0003041,120]
[380361245,1755704231883,-766.99,0.0003041,120]
[380361246,1755704231931,-400.0,0.0003041,120]
[380361247,1755704231980,-400.0,0.0003041,120]
[380361248,1755704232030,-802.09,0.0003041,120]
[380361249,1755704232085,-1633.32,0.0003041,120]
[380361250,1755704232140,-400.0,0.0003041,120]
[380361251,1755704232197,-1437.08,0.0003041,120]
[380361252,1755704232255,-451.91,0.0003041,120]
[380361253,1755704232308,-400.0,0.0003041,120]
[380361254,1755704232362,-1506.2,0.0003041,120]
[380361255,1755704232414,-1314.55,0.0003041,120]
[380361256,1755704232466,-897.94,0.0003041,120]
[380361257,1755704232518,-400.0,0.0003041,120]
[380361258,1755704232573,-400.0,0.0003041,120]
[380361259,1755704232629,-400.0,0.0003041,120]
[380361260,1755704232681,-1909.63,0.0003041,120]
[380361261,1755704232731,-845.46,0.0003041,120]
[380361262,1755704232781,-400.0,0.0003041,120]
[380361263,1755704232831,-1553.12,0.0003041,120]
[380361264,1755704232884,-565.39,0.0003041,120]
[380361265,1755704232936,-400.0,0.0003041,120]
[380361266,1755704232989,-400.0,0.0003041,120]
[380361267,1755704233050,-1193.79,0.0003041,120]
[380361268,1755704233110,-1393.64,0.0003041,120]
[380361269,1755704233168,-791.35,0.0003041,120]
[380361270,1755704233230,-400.0,0.0003041,120]
[380361271,1755704233294,-400.0,0.0003041,120]
[380361272,1755704233358,-1132.22,0.0003041,120]
[380361273,1755704233415,-508.11,0.0003041,120]
[380361274,1755704233471,-900.25,0.0003041,120]
[380361275,1755704233530,-1591.84,0.0003041,120]
[380361276,1755704233586,-400.0,0.0003041,120]
[380361277,1755704233898,-1706.19,0.0003041,120]
[380361278,1755704233964,-400.0,0.0003041,120]
[380361279,1755704234022,-1310.14,0.0003041,120]
[380361280,1755704234077,-1567.06,0.0003041,120]
[380361281,1755704234138,-400.0,0.0003041,120]
[380361282,1755704234194,-739.2,0.0003041,120]
[380361283,1755704234254,-591.32,0.0003041,120]
[380361284,1755704234312,-400.0,0.0003041,120]
[380361285,1755704234383,-1264.17,0.0003041,120]
[380361286,1755704234440,-1769.16,0.0003041,120]
[380361287,1755704234496,-1593.56,0.0003041,120]
[380361288,1755704234550,-814.97,0.0003041,120]
[380361289,1755704234605,-435.86,0.0003041,120]
[380361290,1755704234658,-400.0,0.0003041,120]
[380361291,1755704234713,-427.54,0.0003041,120]
[380361292,1755704234772,-1191.55,0.0003041,120]
[380361293,1755704234835,-918.7,0.0003041,120]
[380361294,1755704234890,-1099.75,0.0003041,120]
[380361295,1755704234948,-1335.27,0.0003041,120]
[380361296,1755704235003,-1151.72,0.0003041,120]
[380361297,1755704235061,-400.0,0.0003041,120]
[380361298,1755704235119,-2443.03,0.0003041,120]
[380361299,1755704235182,-952.89,0.0003041,120]
[380361300,1755704235242,-673.34,0.0003041,120]
[380361301,1755704235302,-1458.61,0.0003041,120]
[380361302,1755704235363,-1757.28,0.0003041,120]
[380361303,1755704235421,-400.0,0.0003041,120]
[380361304,1755704235481,-400.0,0.0003041,120]
[380361305,1755704235537,-1628.91,0.0003041,120]
[380361306,1755704235589,-1052.77,0.0003041,120]
[380361307,1755704235643,-3284.42,0.0003041,120]
[380361308,1755704235696,-1302.47,0.0003041,120]
[380361309,1755704235747,-753.99,0.0003041,120]
[380361310,1755704235805,-400.0,0.0003041,120]
[380361311,1755704235858,-921.54,0.0003041,120]
[380361312,1755704235912,-1366.98,0.0003041,120]
[380361313,1755704235964,-662.23,0.0003041,120]
[380361314,1755704236019,-412.94,0.0003041,120]
[380361315,1755704236072,-1441.89,0.0003041,120]
[380361316,1755704236126,-1129.75,0.0003041,120]
[380361317,1755704236183,-732.85,0.0003041,120]
[380361318,1755704236240,-727.42,0.0003041,120]
[380361319,1755704236296,-400.0,0.0003041,120]
[380361320,1755704236351,-809.13,0.0003041,120]
[380361321,1755704236404,-1494.53,0.0003041,120]
[380361322,1755704236458,-400.0,0.0003041,120]
[380361323,1755704236511,-1133.12,0.0003041,120]
[380361324,1755704236565,-514.29,0.0003041,120]
[380361325,1755704236623,-994.59,0.0003041,120]
[380361326,1755704236673,-1156.27,0.0003041,120]
[380361327,1755704236726,-400.0,0.0003041,120]
[380361328,1755704236779,-1470.84,0.0003041,120]
[380361329,1755704236832,-1419.86,0.0003041,120]
[380361330,1755704236882,-400.0,0.0003041,120]
[380361331,1755704236935,-1310.35,0.0003041,120]
[380361332,1755704236983,-1114.65,0.0003041,120]
[380361333,1755704237037,-1330.33,0.0003041,120]
[380361334,1755704237090,-400.0,0.0003041,120]
[380361335,1755704237145,-400.0,0.0003041,120]
[380361336,1755704237196,-430.61,0.0003041,120]
[380361337,1755704237250,-400.0,0.0003041,120]
[380361338,1755704237304,-1080.04,0.0003041,120]
[380361339,1755704237358,-909.62,0.0003041,120]
[380361340,1755704237409,-756.7,0.0003041,120]
[380361341,1755704237466,-1177.72,0.0003041,120]
[380361342,1755704237517,-400.0,0.0003041,120]
[380361343,1755704237571,-866.56,0.0003041,120]
[380361344,1755704237621,-1134.09,0.0003041,120]
[380361345,1755704237671,-1116.91,0.0003041,120]
[380361346,1755704237722,-1698.19,0.0003041,120]
[380361347,1755704237772,-400.0,0.0003041,120]
[380361348,1755704237827,-698.15,0.0003041,120]
[380361349,1755704237877,-1476.81,0.0003041,120]
[380361350,1755704237929,-1075.8,0.0003041,120]
[380361351,1755704237996,-1099.37,0.0003041,120]
[380361352,1755704238056,-1704.43,0.0003041,120]
[380361353,1755704238109,-3119.31,0.0003041,120]
[380361354,1755704238168,-1092.97,0.0003041,120]
[380361355,1755704238228,-1429.41,0.0003041,120]
[380361356,1755704238286,-2175.99,0.0003041,120]
[380361357,1755704238341,-982.51,0.0003041,120]
[380361358,1755704238396,-1677.35,0.0003041,60]
[380361359,1755704238448,-400.0,0.0003041,120]
[380361360,1755704238500,-1533.9,0.0003041,120]
[380361361,1755704238554,-696.27,0.0003041,120]
[380361362,1755704238606,-400.0,0.0003041,120]
[380361363,1755704238661,-400.0,0.0003041,120]
[380361364,1755704238715,-1517.11,0.0003041,120]
[380361365,1755704238773,-1000.1,0.0003041,120]
[380361366,1755704238829,-409.19,0.0003041,120]
[380361367,1755704238888,-400.0,0.0003041,120]
[380361368,1755704238946,-400.0,0.0003041,120]
[380361369,1755704239006,-1488.6,0.0003041,120]
[380361370,1755704239061,-400.0,0.0003041,120]
[380361371,1755704239123,-1118.43,0.0003041,120]
[380361372,1755704239177,-1579.0,0.0003041,120]
[380361373,1755704239240,-400.0,0.0003041,120]
[380361374,1755704239300,-910.36,0.0003041,120]
[380361375,1755704239362,-1765.77,0.0003041,120]
[380361376,1755704239421,-400.0,0.0003041,120]
[380361377,1755704239483,-466.92,0.0003041,120]
[380361378,1755704239543,-1933.39,0.0003041,120]
[380361379,1755704239604,-400.0,0.0003041,120]
[380361380,1755704239668,-400.0,0.0003041,120]
[380361381,1755704239727,-1462.34,0.0003041,120]
[380361382,1755704239785,-1431.51,0.0003041,120]
[380361383,1755704239845,-1905.51,0.0003041,120]
[380361384,1755704239903,-734.83,0.0003041,120]
[380361385,1755704239957,-1278.87,0.0003041,120]
[380361386,1755704240015,-1239.09,0.0003041,120]
[380361387,1755704240073,-1462.75,0.0003041,120]
[380361388,1755704240133,-1629.62,0.0003041,120]
[380361389,1755704240190,-401.9,0.0003041,120]
[380361390,1755704240258,-1484.13,0.0003041,120]
[380361391,1755704240334,-851.22,0.0003041,120]
[380361392,1755704240951,-622.18,0.0003041,120]
[380361393,1755704241008,-527.75,0.0003041,120]
[380361394,1755704241066,-982.39,0.0003041,120]
[380361395,1755704241132,-400.0,0.0003041,120]
[380361396,1755704241203,-892.04,0.0003041,120]
[380361397,1755704241264,-808.7,0.0003041,120]
[380361398,1755704241326,-400.0,0.0003041,120]
[380361399,1755704241384,-1255.42,0.0003041,120]
[380361400,1755704241444,-4207.86,0.0003041,120]
[380361401,1755704241501,-1143.78,0.0003041,120]
[380361402,1755704241557,-1556.46,0.0003041,120]
[380361403,1755704241610,-930.43,0.0003041,120]